Cogmind - Beta 15 @@@ ROGUE MODE // 2025.09.24 @ 17:52:18 Player: GermanMO Result: Destroyed by S-43 Plague with Heavy Machine Gun Performance ------------- Evolutions (7) 3500 Regions Visited (12) 2400 Robots Destroyed (38) 190 Value Destroyed (1519) 1519 Prototype IDs (10) 200 Alien Tech Used (0) 0 Bonus (0) 0 TOTAL SCORE: 7809 Bonus ------- None Cogmind --------- Core Integrity 0/1300 Matter 5/300 Energy 99/100 System Corruption 10% Temperature Cool (0) Movement Core (50) Location -3/Research Parts ------- > --- POWER (2) -------- (None) > --- PROPULSION (6) --- (None) > --- UTILITY (9) ------ Advanced Terrain Scan Processor Advanced Targeting Computer > --- WEAPON (4) ------- (None) > --- INVENTORY (5) ---- Advanced Targeting Computer Hypervelocity Mass Driver Peak State ------------ > --- POWER ------------ Neutrino Core Light Antimatter Reactor > --- PROPULSION ------- Field Propulsion Drive Field Propulsion Drive Nuclear Pulse Array Field Propulsion Array > --- UTILITY ---------- Advanced Weight Redist. System Improved Sensor Array Improved Signal Interpreter Experimental Signal Interpreter Improved Terrain Scanner Advanced Terrain Scan Processor Advanced Terrain Scan Processor Advanced Targeting Computer Improved Transmission Jammer > --- WEAPON ----------- Linear Accelerator Smartbomb Launcher Heavy Flail > --- INVENTORY -------- Advanced Targeting Computer Reaction Control System Molecular Deconstructor [Rating: 113] Favorites ----------- Power Neutrino Core Engine Ion Engine Power Core Neutrino Core Reactor Light Antimatter Reactor Propulsion Improved Cesium-ion Thruster Treads Improved Treads Leg Aluminum Leg Hover Unit Hover Unit Flight Unit Improved Cesium-ion Thruster Utility Advanced Terrain Scan Processor Device Improved Sensor Array Processor Advanced Terrain Scan Processor Weapon Heavy Flail Energy Gun Phase Gun Energy Cannon Particle Cannon Ballistic Gun Flak Gun Ballistic Cannon Linear Accelerator Launcher Smartbomb Launcher Special Weapon Molecular Deconstructor Impact Weapon Heavy Flail Slashing Weapon Scythe Build | -11 -10 -9 -8 -7 -7 -7 -6 -5 -4 -4 -4 -3 ------- Run | Yrd Mat Mat Mat Fac Low Low Fac Fac Fac Upp Upp Res Slots Evolved 14 | . . 2 2 2 . . 2 2 2 . . 2 Power 1 | . . . 1 . . . . . . . . . Propulsion 4 | . . 2 . . . . 1 1 . . . . Utility 7 | . . . 1 2 . . 1 1 1 . . 1 Weapon 2 | . . . . . . . . . 1 . . 1 Parts Attached 68 | . 3 13 16 5 3 . 3 4 6 4 . 11 Power 5 | . . 1 1 . . . . 1 1 1 . . Engine 2 | . . 1 1 . . . . . . . . . Core 1 | . . . . . . . . 1 . . . . Reactor 2 | . . . . . . . . . 1 1 . . Propulsion 22 | . . 6 6 1 . . 1 2 3 . . 3 Treads 4 | . . 4 . . . . . . . . . . Leg 2 | . . 2 . . . . . . . . . . Wheel . | . . . . . . . . . . . . . Hover 9 | . . . 6 . . . 1 1 1 . . . Flight 7 | . . . . 1 . . . 1 2 . . 3 Utility 20 | . 1 2 6 2 1 . 1 1 1 1 . 4 Device 11 | . . . 4 1 . . 1 1 1 1 . 2 Storage . | . . . . . . . . . . . . . Processor 9 | . 1 2 2 1 1 . . . . . . 2 Hackware . | . . . . . . . . . . . . . Protection . | . . . . . . . . . . . . . Artifact . | . . . . . . . . . . . . . Weapon 21 | . 2 4 3 2 2 . 1 . 1 2 . 4 Energy Gun 7 | . . 1 1 2 . . . . 1 1 . 1 Energy Cannon 2 | . . 1 . . . . 1 . . . . . Ballistic Gun 4 | . 2 1 1 . . . . . . . . . Ballistic Cannon 2 | . . . . . . . . . . . . 2 Launcher 2 | . . . 1 . . . . . . 1 . . Special Weapon 1 | . . . . . . . . . . . . 1 Impact Weapon 2 | . . 1 . . 1 . . . . . . . Slashing Weapon 1 | . . . . . 1 . . . . . . . Piercing Weapon . | . . . . . . . . . . . . . Special Melee Weapon . | . . . . . . . . . . . . . Unidentified Prototypes 10 | . . 1 1 3 . . 1 . 1 . . 3 Parts Lost 40 | . . 8 10 . . . . . . 1 . 21 Power 4 | . . 1 1 . . . . . . . . 2 Propulsion 14 | . . 5 4 . . . . . . . . 5 Utility 12 | . . . 2 . . . . . . 1 . 9 Weapon 10 | . . 2 3 . . . . . . . . 5 Highest Loss Streak 14 | . . 6 6 . . . . . . 1 . 14 To Critical Strikes 1 | . . 1 . . . . . . . . . . Average Backups 3 | 2 4 2 4 4 5 5 4 3 4 2 2 3 Power . | . 1 . . . . . . . . . . . Propulsion . | 1 2 . . . . . . . . . . . Utility 2 | . . . 4 3 4 4 3 2 3 2 2 1 Weapon . | . 1 . . 1 1 1 . 1 1 . . 1 Tool/Special . | . . . . . . . . . . . . . Unused Backups 6 | . . 1 3 . . . . 1 . . . 1 Power . | . . . . . . . . . . . . . Propulsion 1 | . . 1 . . . . . . . . . . Utility 5 | . . . 3 . . . . 1 . . . 1 Weapon . | . . . . . . . . . . . . . Tool/Special . | . . . . . . . . . . . . . Average Slot Usage (%) 63 | . 14 57 72 37 52 53 54 59 79 82 84 68 Engine 1 | . . 3 8 . . . . . . . . . Core 1 | . . . . . . . . . 5 5 5 2 Treads 1 | . . 11 . . . . . . . . . . Hover 4 | . . . 21 . . . 5 5 7 . . . Flight 8 | . . . . 1 7 7 6 6 15 21 21 14 Device 15 | . . . 8 14 15 15 13 22 24 24 26 15 Processor 19 | . 3 19 17 21 23 23 20 17 15 15 15 21 Energy Gun 1 | . . 5 2 . . . . . 4 2 . 1 Ballistic Gun 1 | . 10 4 3 . . . . . . . . . Impact Weapon 5 | . . 6 8 . 6 7 6 5 5 5 5 3 Peak Build Rating 113 | . 3 12 19 22 29 26 37 64 93 96 98 113 Average Rating 46 | . . 6 15 17 25 26 31 43 82 94 96 93 On Entrance 36 | . . 3 6 8 22 26 26 37 64 88 96 98 Naked Turns 41 | . 41 . . . . . . . . . . . Heaviest Build 43 | . 3 9 12 2 5 5 12 20 28 43 42 42 Greatest Support 69 | 3 3 69 24 6 6 6 15 28 50 50 50 52 Greatest Overweight (x) 7 | . . 2 3 . . . . . . . . 7 Average Overweight (x) . | . . . . . . . . . . . . . Largest Inventory Capacity 5 | 5 5 5 5 5 5 5 5 5 5 5 5 5 Average Capacity 5 | 5 5 5 5 5 5 5 5 5 5 5 5 5 Most Carried 5 | 5 5 5 5 5 5 5 5 5 5 5 4 5 Average Carried 4 | 2 4 2 4 4 5 5 4 4 5 2 2 4 Final Capacity 5 | 5 5 5 5 5 5 5 5 5 5 5 5 5 Final Carried 5 | 5 3 2 5 5 5 5 3 5 5 2 4 2 Class Distribution -------------------- 36% | Ninja 28% | Mutant 28% | Scout 4% | Skirmisher Dominant Class ---------------- Mutant | -10/Materials Mutant | -9/Materials Mutant | -8/Materials Scout | -7/Factory Scout | -7/Lower Caves Scout | -7/Lower Caves Scout | -6/Factory Ninja | -5/Factory Ninja | -4/Factory Ninja | -4/Upper Caves Ninja | -4/Upper Caves Ninja | -3/Research Resources | -11 -10 -9 -8 -7 -7 -7 -6 -5 -4 -4 -4 -3 ----------- Run | Yrd Mat Mat Mat Fac Low Low Fac Fac Fac Upp Upp Res Matter Collected 1011 | 200 . 212 145 . 130 . . . . 184 140 . Remotely . | . . . . . . . . . . . . . Salvage Created 1486 | . 55 511 192 . 147 139 . . . 187 99 156 Parts 47 | . 4 20 4 . 2 1 . . . 9 . 7 Haulers Intercepted 1 | . 1 . . . . . . . . . . . Recyclers Shooed . | . . . . . . . . . . . . . Parts Field Recycled . | . . . . . . . . . . . . . Retrieved Matter . | . . . . . . . . . . . . . Parts Self-Destructed 13 | . . . . . 6 1 . . . 6 . . Prevented 4 | . . . . . . . . . . 2 2 . Kills | -11 -10 -9 -8 -7 -7 -7 -6 -5 -4 -4 -4 -3 ------- Run | Yrd Mat Mat Mat Fac Low Low Fac Fac Fac Upp Upp Res Combat Hostiles Destroyed 34 | . . 12 3 . . 3 . . . 10 3 3 Melee 4 | . . 1 1 . . . . . . 2 . . Guns 4 | . . 1 1 . . . . . . 1 . 1 Cannons 8 | . . 7 . . . . . . . . . 1 AOE 8 | . . . . . . . . . . 6 2 . Classes Destroyed 10 | . 1 3 1 . . 1 . . . . 1 3 Worker 1 | . . . . . . . . . . . . 1 Builder 1 | . . . . . . . . . . . . 1 Hauler 1 | . 1 . . . . . . . . . . . Recycler 1 | . . . 1 . . . . . . . . . Swarmer 10 | . . . . . . 3 . . . 7 . . Grunt 10 | . . 9 . . . . . . . 1 . . Brawler 1 | . . . . . . . . . . . 1 . Duelist 3 | . . 1 . . . . . . . 1 1 . Sentry 8 | . . 2 3 . . . . . . 1 1 1 Programmer 2 | . . . . . . . . . . . . 2 Best Kill Streak 7 | . 1 7 1 . . 3 . . . 4 3 2 Combat Bots Only 7 | . . 7 1 . . 3 . . . 4 3 2 Max Kills in Single Turn 3 | . 1 1 1 . . 1 . . . 3 1 2 Gunslinging . | . . . . . . . . . . . . . Exploded 3 | . . . . . . . . . . 3 1 . Melee 1 | . . 1 1 . . . . . . 1 . . Uniques/NPCs Destroyed . | . . . . . . . . . . . . . Combat | -11 -10 -9 -8 -7 -7 -7 -6 -5 -4 -4 -4 -3 -------- Run | Yrd Mat Mat Mat Fac Low Low Fac Fac Fac Upp Upp Res Hostile Shots Fired 446 | . 1 124 92 . . 8 . 2 6 17 4 192 Missed 143 | . 1 26 26 . . 5 . 2 2 6 2 73 Hits 303 | . . 98 66 . . 3 . . 4 11 2 119 Melee 6 | . . 4 . . . . . . . 2 . . Projectile 297 | . . 94 66 . . 3 . . 4 9 2 119 Critical Strikes 15 | . . 3 2 . . . . . . . . 10 Part Disruptions 1 | . . . . . . . . . . . . 1 Damage Taken 5608 | . . 1383 779 74 . 47 . . 90 277 78 2880 Core 2017 | . . 264 235 74 . 34 . . 22 47 35 1306 Absorbed by Shields . | . . . . . . . . . . . . . Core Remaining (%) 83 | 100 100 34 57 . . 84 100 100 . . 90 . Volleys Fired 85 | . 2 28 4 . . . . . . 16 8 27 Largest 2 | . 2 2 1 . . . . . . 2 1 1 Hottest 169 | . 40 88 50 . . . . . . 169 46 88 Shots Fired 93 | . 4 33 4 . . . . . . 17 8 27 Gun 48 | . 4 18 4 . . . . . . 8 . 14 Cannon 22 | . . 15 . . . . . . . . . 7 Launcher 18 | . . . . . . . . . . 9 8 1 Special 5 | . . . . . . . . . . . . 5 Kinetic 25 | . 4 11 3 . . . . . . . . 7 Thermal 44 | . . 22 . . . . . . . 8 . 14 Explosive 18 | . . . . . . . . . . 9 8 1 Electromagnetic 1 | . . . 1 . . . . . . . . . Robot Hit Streak 15 | . 3 15 12 . . . . . . 14 4 7 Robot Miss Streak 2 | . . 1 1 . . . . . . 1 . 2 Penetration Max . | . . . . . . . . . . . . . Secondary Targets . | . . . . . . . . . . . . . Shots Hit Robots 112 | . 3 42 20 . 3 5 . . 1 12 2 24 Core Hits 50 | . 1 15 5 . 1 . . . . 14 8 6 Critical Kills 2 | . . 2 . . . . . . . . . . Critical Parts Destroyed 10 | . . 6 3 . 1 . . . . . . . Critical Strikes 16 | . . 9 3 . 1 . . . . . . 3 Burn 2 | . . . . . . . . . . . . 2 Meltdown 1 | . . 1 . . . . . . . . . . Destroy 2 | . . 2 . . . . . . . . . . Blast 1 | . . . . . . . . . . . . 1 Smash 10 | . . 6 3 . 1 . . . . . . . Melee Attacks 128 | . . 19 39 . 8 8 1 7 17 4 3 22 Impact 128 | . . 19 39 . 8 8 1 7 17 4 3 22 Slashing . | . . . . . . . . . . . . . Piercing . | . . . . . . . . . . . . . Sneak Attacks 2 | . . . 1 . . 1 . . . . . . Combat Hostiles 1 | . . . . . . 1 . . . . . . Follow-up Attacks . | . . . . . . . . . . . . . Damage Inflicted 4600 | . 34 732 440 . 289 290 . . 36 1128 527 1124 Guns 742 | . 34 158 65 . . . . . . 154 . 331 Cannons 482 | . . 245 . . . . . . . . . 237 Explosions 1514 | . . . . . . . . . . 788 470 256 Melee 1862 | . . 329 375 . 289 290 . . 36 186 57 300 Ramming . | . . . . . . . . . . . . . Kinetic 436 | . 34 100 65 . . . . . . . . 237 Thermal 788 | . . 303 . . . . . . . 154 . 331 Explosive 1514 | . . . . . . . . . . 788 470 256 Electromagnetic . | . . . . . . . . . . . . . Impact 1862 | . . 329 375 . 289 290 . . 36 186 57 300 Slashing . | . . . . . . . . . . . . . Piercing . | . . . . . . . . . . . . . Highest Corruption 10 | . . . . . . . . . . . . 10 Average Corruption 5 | . . . . . . . . . . . . 5 Corruption Purged . | . . . . . . . . . . . . . Corruption Blocked . | . . . . . . . . . . . . . Effects 11 | . . . . . . . . . . . . 11 Message Errors 5 | . . . . . . . . . . . . 5 Matter Fused 3 | . . . . . . . . . . . . 3 Data Loss (minor) 1 | . . . . . . . . . . . . 1 Alerts 1 | . . . . . . . . . . . . 1 Misdirections 1 | . . . . . . . . . . . . 1 Overload Shots . | . . . . . . . . . . . . . Overflow Damage 579 | . . 93 82 . 97 139 . . . 112 24 32 Projectiles . | . . . . . . . . . . . . . Explosions 44 | . . . . . . . . . . 20 . 24 Melee 535 | . . 93 82 . 97 139 . . . 92 24 8 Knockbacks 10 | . . 3 1 . 1 1 . . . 1 . 3 Impact 8 | . . 3 1 . 1 1 . . . 1 . 1 Kinetic 2 | . . . . . . . . . . . . 2 Secondary . | . . . . . . . . . . . . . Self-Inflicted Damage 107 | . . . . . . . . . . 37 27 43 Shots 4 | . . . . . . . . . . 2 1 1 Rammed . | . . . . . . . . . . . . . Targets Rammed . | . . . . . . . . . . . . . Kicked . | . . . . . . . . . . . . . Crushed . | . . . . . . . . . . . . . Highest Temperature 328 | . . 328 7 . . . . . . 152 113 120 Average Temperature 70 | . . 128 5 . . . . . . 57 58 37 Received Heat Transfer 939 | . . 531 252 . . . . . 21 9 9 117 Effects 1 | . . 1 . . . . . . . . . . Matter Decay 1 | . . 1 . . . . . . . . . . Siege Activations . | . . . . . . . . . . . . . Martial Activations . | . . . . . . . . . . . . . Shielding Activations . | . . . . . . . . . . . . . Robots Disrupted . | . . . . . . . . . . . . . Combat Hostiles . | . . . . . . . . . . . . . Robots Corrupted 10 | . . 2 2 . 1 3 . . . 1 1 . Combat Hostiles 9 | . . 2 1 . 1 3 . . . 1 1 . Parts Fried 8 | . . 3 1 . . 3 . . . 1 . . Impact Corruptions 22 | . . 5 4 . 3 5 . . . 3 1 1 Robots Melted 1 | . . 1 . . . . . . . . . . Combat Hostiles 1 | . . 1 . . . . . . . . . . Parts Melted 2 | . . 2 . . . . . . . . . . Heat Transferred 1491 | . . 569 . . . . . . . 222 . 700 Parts Sabotaged . | . . . . . . . . . . . . . Parts Stolen . | . . . . . . . . . . . . . Parts Stripped . | . . . . . . . . . . . . . Power Chain Reactions . | . . . . . . . . . . . . . Alert | -11 -10 -9 -8 -7 -7 -7 -6 -5 -4 -4 -4 -3 ------- Run | Yrd Mat Mat Mat Fac Low Low Fac Fac Fac Upp Upp Res Maximum Alert Level 1 | . . 1 . . . . . . . . . . Low Security (%) 99 | 100 100 98 100 100 . . 100 100 100 . . 100 Level 1 . | . . 1 . . . . . . . . . . Level 2 . | . . . . . . . . . . . . . Level 3 . | . . . . . . . . . . . . . Level 4 . | . . . . . . . . . . . . . Level 5 . | . . . . . . . . . . . . . High Security . | . . . . . . . . . . . . . Max Security . | . . . . . . . . . . . . . Peak Influence 200 | . 15 200 35 12 . . 1 20 113 . . 51 Initial 33 | . . . 33 12 . . . . . . . . Average 23 | . 3 120 5 . . . . 1 36 . . 4 Influence Increases 1449 | . 22 405 195 . 10 75 1 44 167 270 60 200 Destroy 0b10 Robot/C 680 | . . 240 60 . . 60 . . . 200 60 60 Destroy 0b10 Robot/NC 35 | . 5 . 5 . 10 5 . . . . . 10 Destroy Leader 132 | . 2 60 30 . . 10 . . . 10 . 20 Disable Machine 15 | . . . 15 . . . . . . . . . Destroy Structure 107 | . . . 10 . . . 1 14 32 . . 50 Partial Spotted 75 | . 15 15 15 . . . . . 15 . . 15 Lose Combat Pursuer 405 | . . 90 60 . . . . 30 120 60 . 45 Influence Decreases 1434 | . 20 327 246 29 10 75 1 44 138 201 158 185 Entered New Map 96 | . . 2 47 17 . . . . . 11 19 . Time Decay 1114 | . 20 245 169 12 10 75 1 44 138 180 139 81 Lost Part 224 | . . 80 30 . . . . . . 10 . 104 Squads Dispatched 12 | . 1 1 3 . . . 1 1 2 . . 3 Investigation 2 | . . . 1 . . . . . 1 . . . Extermination 4 | . . . . . . . . 1 1 . . 2 Reinforcement 6 | . 1 1 2 . . . 1 . . . . 1 Assault . | . . . . . . . . . . . . . Garrison . | . . . . . . . . . . . . . Intercept . | . . . . . . . . . . . . . Searches Triggered . | . . . . . . . . . . . . . Construction Impeded . | . . . . . . . . . . . . . Haulers Reinforced . | . . . . . . . . . . . . . Active Scanning Responses . | . . . . . . . . . . . . . Cargo Convoy Interrupts . | . . . . . . . . . . . . . Stealth | -11 -10 -9 -8 -7 -7 -7 -6 -5 -4 -4 -4 -3 --------- Run | Yrd Mat Mat Mat Fac Low Low Fac Fac Fac Upp Upp Res Distress Signals 4 | . . 1 1 . . . . 1 . . . 1 Communications Jammed 3 | . . . . . . . . . . . . 3 Distress Signals 3 | . . . . . . . . . . . . 3 Times Spotted 76 | . 4 22 15 . . 2 1 . 2 9 2 19 Peak Tracking Total 10 | . 3 9 10 . . 2 1 3 8 7 3 10 Tactical Retreats 12 | . . 2 2 . . . . 1 2 2 . 3 Traps | -11 -10 -9 -8 -7 -7 -7 -6 -5 -4 -4 -4 -3 ------- Run | Yrd Mat Mat Mat Fac Low Low Fac Fac Fac Upp Upp Res Traps Triggered 5 | . . . 1 1 . . . . 3 . . . Indirectly . | . . . . . . . . . . . . . Trap Hack Attempts . | . . . . . . . . . . . . . Triggered . | . . . . . . . . . . . . . Disarmed . | . . . . . . . . . . . . . Reprogrammed . | . . . . . . . . . . . . . Reused . | . . . . . . . . . . . . . Traps Extracted . | . . . . . . . . . . . . . Installed . | . . . . . . . . . . . . . Triggered . | . . . . . . . . . . . . . Machines | -11 -10 -9 -8 -7 -7 -7 -6 -5 -4 -4 -4 -3 ---------- Run | Yrd Mat Mat Mat Fac Low Low Fac Fac Fac Upp Upp Res Machines Disabled 2 | . . . 1 . . . . . . . 1 . Max in Single Turn 1 | . . . 1 . . . . . . . 1 . Machines Repaired . | . . . . . . . . . . . . . Machines Dismantled . | . . . . . . . . . . . . . Machines Sabotaged . | . . . . . . . . . . . . . Overloaded Fab Kills . | . . . . . . . . . . . . . Hacking | -11 -10 -9 -8 -7 -7 -7 -6 -5 -4 -4 -4 -3 --------- Run | Yrd Mat Mat Mat Fac Low Low Fac Fac Fac Upp Upp Res Machines Accessed . | . . . . . . . . . . . . . Terminals . | . . . . . . . . . . . . . Fabricators . | . . . . . . . . . . . . . Repair Stations . | . . . . . . . . . . . . . Recycling Units . | . . . . . . . . . . . . . Scanalyzers . | . . . . . . . . . . . . . Garrison Access . | . . . . . . . . . . . . . Total Hacks . | . . . . . . . . . . . . . Successful . | . . . . . . . . . . . . . Failed . | . . . . . . . . . . . . . Catastrophic . | . . . . . . . . . . . . . Database Lockouts . | . . . . . . . . . . . . . Manual 1 | . . . . . . . . . . . 1 . Terminals . | . . . . . . . . . . . . . Fabricators . | . . . . . . . . . . . . . Repair Stations . | . . . . . . . . . . . . . Recycling Units . | . . . . . . . . . . . . . Scanalyzers . | . . . . . . . . . . . . . Garrison Access . | . . . . . . . . . . . . . Terminal Hacks . | . . . . . . . . . . . . . Fabricator Hacks . | . . . . . . . . . . . . . Repair Station Hacks . | . . . . . . . . . . . . . Recycling Unit Hacks . | . . . . . . . . . . . . . Scanalyzer . | . . . . . . . . . . . . . Garrison Access Hacks . | . . . . . . . . . . . . . Unauthorized Hacks . | . . . . . . . . . . . . . Terminals . | . . . . . . . . . . . . . Fabricators . | . . . . . . . . . . . . . Repair Stations . | . . . . . . . . . . . . . Recycling Units . | . . . . . . . . . . . . . Scanalyzers . | . . . . . . . . . . . . . Garrison Access . | . . . . . . . . . . . . . Data Cores Recovered . | . . . . . . . . . . . . . Used . | . . . . . . . . . . . . . Hacking Detections . | . . . . . . . . . . . . . Full Trace Events . | . . . . . . . . . . . . . Feedback Events . | . . . . . . . . . . . . . Feedback Blocked . | . . . . . . . . . . . . . Robot Schematics Acquired . | . . . . . . . . . . . . . Robots Built . | . . . . . . . . . . . . . Authchips . | . . . . . . . . . . . . . Time . | . . . . . . . . . . . . . Total Robot Build Rating . | . . . . . . . . . . . . . Part Schematics Acquired . | . . . . . . . . . . . . . Parts Built . | . . . . . . . . . . . . . Authchips . | . . . . . . . . . . . . . Time . | . . . . . . . . . . . . . Total Part Build Rating . | . . . . . . . . . . . . . Parts Repaired . | . . . . . . . . . . . . . Time . | . . . . . . . . . . . . . Parts Recycled . | . . . . . . . . . . . . . Recycled Matter . | . . . . . . . . . . . . . Retrieved Matter . | . . . . . . . . . . . . . Retrieved Components . | . . . . . . . . . . . . . Parts Scanalyzed . | . . . . . . . . . . . . . Part Schematics Acquired . | . . . . . . . . . . . . . Parts Damaged . | . . . . . . . . . . . . . Bothacking | -11 -10 -9 -8 -7 -7 -7 -6 -5 -4 -4 -4 -3 ------------ Run | Yrd Mat Mat Mat Fac Low Low Fac Fac Fac Upp Upp Res Used RIF Installer . | . . . . . . . . . . . . . Robots Hacked . | . . . . . . . . . . . . . Non-combat . | . . . . . . . . . . . . . Combat . | . . . . . . . . . . . . . Robot Hacks Applied . | . . . . . . . . . . . . . Relay Couplers Released . | . . . . . . . . . . . . . Fabnet Peak Effective % . | . . . . . . . . . . . . . Robots Rewired . | . . . . . . . . . . . . . Allies Hacked . | . . . . . . . . . . . . . Hacks Repelled . | . . . . . . . . . . . . . Allies | -11 -10 -9 -8 -7 -7 -7 -6 -5 -4 -4 -4 -3 -------- Run | Yrd Mat Mat Mat Fac Low Low Fac Fac Fac Upp Upp Res Total Allies . | . . . . . . . . . . . . . Largest Group . | . . . . . . . . . . . . . Highest-Rated Group . | . . . . . . . . . . . . . Highest-Rated Ally . | . . . . . . . . . . . . . Total Orders . | . . . . . . . . . . . . . Ally Attacks . | . . . . . . . . . . . . . Total Damage . | . . . . . . . . . . . . . Kills . | . . . . . . . . . . . . . Allies Corrupted . | . . . . . . . . . . . . . Allies Melted . | . . . . . . . . . . . . . Intel | -11 -10 -9 -8 -7 -7 -7 -6 -5 -4 -4 -4 -3 ------- Run | Yrd Mat Mat Mat Fac Low Low Fac Fac Fac Upp Upp Res Active Infowar (turns) 6245 | . 13 237 1004 460 1237 262 122 588 717 379 383 843 Sensors 5742 | . . . 759 460 1229 262 122 588 717 379 383 843 Terrain 4620 | . . . 246 353 1201 262 122 463 717 379 383 494 T.N.C. 250 | . 13 237 . . . . . . . . . . Jamming 1159 | . . . . . . . . 15 . 267 383 494 Robot Analysis Total . | . . . . . . . . . . . . . Derelict Logs Recovered 7 | . . . . . 3 2 . . . 2 . . Drone Launches . | . . . . . . . . . . . . . Drone Recoveries . | . . . . . . . . . . . . . Exploration | -11 -10 -9 -8 -7 -7 -7 -6 -5 -4 -4 -4 -3 ------------- Run | Yrd Mat Mat Mat Fac Low Low Fac Fac Fac Upp Upp Res Turns Passed 6849 | 25 65 583 1080 472 1237 262 141 591 717 379 383 914 Spaces Moved 6753 | 39 110 276 852 342 1499 443 90 639 782 411 486 784 Core 764 | 39 110 154 55 284 . . . . . . . 122 Treads 68 | . . 65 3 . . . . . . . . . Legs 57 | . . 57 . . . . . . . . . . Wheels . | . . . . . . . . . . . . . Hover 1349 | . . . 794 . . . 77 478 . . . . Flight 4515 | . . . . 58 1499 443 13 161 782 411 486 662 Fastest Speed 27 | 50 50 50 48 35 35 35 35 34 27 27 27 27 Average Speed 42 | 50 50 91 55 47 35 35 47 46 29 27 27 53 Slowest Speed 400 | 50 50 160 200 50 35 35 50 50 34 27 27 400 Overloaded Moves . | . . . . . . . . . . . . . Propulsion Burnouts . | . . . . . . . . . . . . . Robots Hopped 1 | . . . . . . . . . . . . 1 Potential Cave-ins 2 | . . . 2 . . . . . . . . . Cave-ins Triggered . | . . . . . . . . . . . . . Exploration Rate (%) 31 | 4 22 32 47 7 95 40 3 19 22 56 42 20 Regions Visited 12 Branch Regions 4 Pre-discovered Areas 1 | . . . . . . . . . . 1 . . Known Exits Taken 9 | . . . 1 1 1 1 1 1 1 1 1 . Unknown Exits Taken 3 | 1 1 1 . . . . . . . . . . Scrap Searched 8 | . . . . . 3 1 . . . 3 1 . Spaces Dug 52 | . . . 11 . 5 1 1 7 16 . 1 10 Terrain Destroyed 218 | . . . 11 . 5 1 1 7 16 68 85 24 Melee 52 | . . . 11 . 5 1 1 7 16 . 1 10 Projectile 2 | . . . . . . . . . . . . 2 AOE 164 | . . . . . . . . . . 68 84 12 Terrain Rammed . | . . . . . . . . . . . . . Walls Destroyed . | . . . . . . . . . . . . . Machines Disabled . | . . . . . . . . . . . . . Actions | -11 -10 -9 -8 -7 -7 -7 -6 -5 -4 -4 -4 -3 --------- Run | Yrd Mat Mat Mat Fac Low Low Fac Fac Fac Upp Upp Res Total 10419 | 43 115 543 1390 651 2198 537 185 926 1242 654 723 1212 Wait 3281 | . . 194 440 296 687 87 92 267 428 218 226 346 Move 6739 | 38 109 275 851 341 1498 442 89 638 781 410 485 782 Hop 1 | . . . . . . . . . . . . 1 Pick Up 50 | 5 1 9 18 3 . . . 6 . . 1 7 Fast Attach 30 | . . 5 4 4 3 . 1 1 6 2 . 4 Attach 52 | . 3 9 17 3 . . 2 3 . 2 . 13 Detach 12 | . . . 5 1 . . . 1 . . . 5 Swap . | . . . . . . . . . . . . . Drop 35 | . . 4 12 3 2 . . 3 4 2 . 5 Fire 85 | . 2 28 4 . . . . . . 16 8 27 Melee 128 | . . 19 39 . 8 8 1 7 17 4 3 22 Ram . | . . . . . . . . . . . . . Kick . | . . . . . . . . . . . . . Crush . | . . . . . . . . . . . . . Escape Stasis 6 | . . . . . . . . . 6 . . . Rewire . | . . . . . . . . . . . . . Trap . | . . . . . . . . . . . . . Miscellaneous . | . . . . . . . . . . . . . Route ------- -11/Scrapyard -10/Materials -9/Materials -8/Materials -7/Factory -7/Lower Caves -7/Lower Caves -6/Factory -5/Factory -4/Factory -4/Upper Caves -4/Upper Caves -3/Research History --------- Turn | Location | Event 5 | -11/Scrapyard | Discovered new exit (range 16) 26 | -11/Scrapyard | Entered Materials 50 | -10/Materials | Discovered new exit (range 10) 91 | -10/Materials | Entered another Materials area 91 | -9/Materials | Evolved 2 slots: Propulsion x2 254 | -9/Materials | Destroyed 7 combat bots 312 | -9/Materials | Build established: Mutant 381 | -9/Materials | Core integrity fell below 50% 426 | -9/Materials | Lost 6 parts (1p4n1w) 447 | -9/Materials | Discovered new exit (range 11) 674 | -9/Materials | Entered another Materials area 674 | -8/Materials | Evolved 2 slots: Power x1, Utility x1 1753 | -8/Materials | Discovered new exit (range 3) 1753 | -8/Materials | Identified exit to Factory 1754 | -8/Materials | Entered Factory 1754 | -7/Factory | Evolved 2 slots: Utility x2 1777 | -7/Factory | Lost 6 parts (1p2n1u2w) 2178 | -7/Factory | Build established: Scout 2213 | -7/Factory | Discovered new exit (range 16) 2226 | -7/Factory | Identified exit to Lower Caves 2226 | -7/Factory | Entered Lower Caves 2261 | -7/Lower Caves | Learned 8 Factory zone layouts 2292 | -7/Lower Caves | Learned Factory interactive machine intel 2292 | -7/Lower Caves | Learned location of 1 exit from Factory 2974 | -7/Lower Caves | Discovered new exit (range 14) 3408 | -7/Lower Caves | Encountered a Warlord checkpoint 3463 | -7/Lower Caves | Identified exit to Lower Caves 3463 | -7/Lower Caves | Entered another Lower Caves area 3507 | -7/Lower Caves | Discovered new exit (range 13) 3511 | -7/Lower Caves | Identified exit to Factory 3593 | -7/Lower Caves | Learned Factory trap positions 3594 | -7/Lower Caves | Learned Factory security intel 3725 | -7/Lower Caves | Entered Factory 3725 | -6/Factory | Evolved 2 slots: Propulsion x1, Utility x1 3726 | -6/Factory | Identified exit to Factory 3728 | -6/Factory | Loaded intel: 89 trap records 3730 | -6/Factory | Loaded intel: 56 interactive machine locations 3866 | -6/Factory | Entered another Factory area 3866 | -5/Factory | Evolved 2 slots: Propulsion x1, Utility x1 4172 | -5/Factory | Build established: Ninja 4282 | -5/Factory | Discovered new exit (range 15) 4309 | -5/Factory | Identified exit to Factory 4457 | -5/Factory | Entered another Factory area 4457 | -4/Factory | Evolved 2 slots: Utility x1, Weapon x1 5052 | -4/Factory | Discovered new exit (range 7) 5171 | -4/Factory | Identified exit to Upper Caves 5174 | -4/Factory | Entered Upper Caves 5190 | -4/Upper Caves | Attracted the attention of an 0b10 outpost 5198 | -4/Upper Caves | Learned Research interactive machine intel 5228 | -4/Upper Caves | Found DCF Scrap (13 items) 5289 | -4/Upper Caves | Spotted B-86 Titan 5464 | -4/Upper Caves | Attracted the attention of an 0b10 checkpoint 5547 | -4/Upper Caves | Discovered new exit (range 15) 5551 | -4/Upper Caves | Identified exit to Upper Caves 5553 | -4/Upper Caves | Entered another Upper Caves area 5572 | -4/Upper Caves | Attracted the attention of an 0b10 checkpoint 5620 | -4/Upper Caves | Discovered new exit (range 9) 5651 | -4/Upper Caves | Identified exit to Research 5898 | -4/Upper Caves | Acquired the password to a Derelict Tinkerer's latest research 5912 | -4/Upper Caves | Found Prototype Special Weapon 5936 | -4/Upper Caves | Entered Research 5936 | -3/Research | Evolved 2 slots: Utility x1, Weapon x1 5937 | -3/Research | Loaded intel: 45 interactive machine locations 5965 | -3/Research | Identified Molecular Deconstructor 6051 | -3/Research | Found Prototype Processor 6052 | -3/Research | Identified Exp. Signal Interpreter 6482 | -3/Research | Lost 4 parts (1p2n1u) 6732 | -3/Research | Build established: Skirmisher 6802 | -3/Research | Core integrity fell below 50% 6831 | -3/Research | Lost 14 parts (3n6u5w) 6834 | -3/Research | Core integrity fell below 20% 6838 | -3/Research | System corruption reached 10% 6850 | -3/Research | Destroyed by S-43 Plague with Heavy Machine Gun Last Messages --------------- Y-72 Warden destroyed. Slug penetrates Wall. Linear Accelerator destroyed. Smartbomb Launcher destroyed. Penetrated by Slug. Imp. Transmission Jammer destroyed. Adv. Terrain Scan Processor destroyed. R-10 Processor collects Particle Reactor. Catalytron disabled. Reaction Control System destroyed. Acquired Hyp. Mass Driver. Exp. Signal Interpreter destroyed. System corrupted: Matter fused (-6). Slug penetrates Door. Penetrated by Slug. Slug penetrates Wall. Imp. Signal Interpreter destroyed. Penetrated by Slug. Slug penetrates Wall. Slug penetrates Door. Map ----- +----------------------------------------------------+ | ?????????????????????????????????????????????????? | | ?????????????????????????????????????????????????? | | ????????????????????????????????????????########## | | ????????????????????????????????????????# # | | ????????????????????????????????????????? # | | ????????????????????????????????????????# """ # | | ????????????????????????????????????????# """ # | | ????????????????????????????????????????# """ + | | ????????????????????????????????????????# """ # | | ????????????????????????????????????????# """ # | | ????????????????????????????????????????# # | | ????????????????????????????????????????# !# | | ????????????????????????????????????????########## | | ?????????????????????????????????????????????????? | | ?????????????????????????????????????????????????? | | ?????????????????????????????????????????????????? | | ???????????????????????????????????????????######? | | ??????????????????????????"""?"""??????????# ? | | ??????????????????????????"""G"""??????????# | | ??????????????????????????????###########??# | | ??????????????????????????????# #??# | | ??????????????????????????????# #??# | | ??????????????????????????????? ???# | | ??????????????????#?????????????? ?????####### | | ?????????????????## ############+############## | | ?????????? @ ss s | | ?????????? ^ s | | ?????????? ^ | | ??????????? | | ???????????####################################### | | ?????????????????????????????????????????????????? | | ?????????????????????????????????????????????????? | | ?????????????????????????????????????????????????? | | ??????????????????????????""""???????????????????? | | ??????????????????????????""R"???????????????????? | | ??????????????????????????""?"???????????????????? | | ?????????????????????????????????????????????????? | | ?????????????????????????????????????????????????? | | ?????????????????????????????????????????????????? | | ?????????????????????????????????????????????????? | | ?????????????????????????????????????????????????? | | ?????????????????????????????????????????????????? | | ?????????????????????????????????????????????????? | | ?????????????????????????????????????????????????? | | ?????????????????????????????????????????????????? | | ?????????????????????????????????????????????????? | | ?????????????????????????????????????????????????? | | ?????????????????????????????????????????????????? | | ?????????????????????????????????????????????????? | | ??????????""?????????????????????????????????????? | +----------------------------------------------------+ Best States ------------- Heat Dissipation 46 Energy Generation 35 Energy Capacity 385 Matter Stores 300 Matter Capacity 300 Sight Range 16 Robot Scan Range 18 Terrain Scan Range 16 Terrain Scan Density 410 Jamming Range 14 Additional Mass Support 9 Evasion (%) 74 Targeting Accuracy 10 Recoil Reduction 3 Item Schematics ----------------- None Robot Schematics ------------------ None Fabricated ------------ Nothing Repaired ---------- Nothing Alien Tech Used ----------------- None Achievements -------------- Dramatic Entrance Challenges ------------ None Game ------ Seed CentriumCorruptionBox Manual? 0 Play Time 02:09:29 Cumulative 19.7 hours Start 2025.09.23 @ 20:54:35 End 2025.09.24 @ 17:52:18 Sessions 5 Manual Loads 0 Difficulty Rogue Special Mode None Game No. 24 Rogue 6 Adventurer 0 Explorer 18 Win Type - Total 0 Types 0/0/0/0/0/0/0/0/0/0 Lore% 11 Gallery% 21 Achievement% 26 Wizard Run 0 Options --------- Layout 2 ASCII 0 Keyboard 0 Movement Mouse Keybinds 0 Fullscreen 2 Font 24/Smallcaps Map View 50x44 Zoom Use 0% Tactical HUD 0 Map Filters NONE Filters NONE Steam 1 RUN: e52c1de0-914b-478f-af2e-1d4a1fefef98